fUST/lending_fUST_20240805
["ID","MTS","AMOUNT","RATE_DAILY","PERIOD"]
[334222420,1722844233051,-531.34920952,0.00019157,2]
[334222421,1722844233063,-31183.80310784,0.00019157,2]
[334222498,1722844238406,-183.12142007,0.0001891,2]
[334222499,1722844238416,-459.34857993,0.00018979,2]
[334222500,1722844238428,-99540.65142007,0.00018979,2]
[334222501,1722844238438,-1643.15842058,0.00019139,7]
[334222502,1722844238447,-500.0,0.00019156,2]
[334222504,1722844238539,-232.6828665,0.00019156,2]
[334222505,1722844238549,-500.0,0.00019156,2]
[334222506,1722844238559,-500.0,0.00019156,2]
[334222507,1722844238568,-500.0,0.00019156,2]
[334222508,1722844238577,-500.0,0.00019156,2]
[334222509,1722844238586,-500.0,0.00019156,2]
[334222510,1722844238596,-500.0,0.00019156,2]
[334222511,1722844238605,-500.0,0.00019156,2]
[334222512,1722844238614,-500.0,0.00019156,2]
[334222513,1722844238624,-500.0,0.00019156,2]
[334222514,1722844238635,-500.0,0.00019156,2]
[334222515,1722844238645,-313.24190482,0.00019156,2]
[334222516,1722844238654,-7652.97101169,0.00019157,2]
[334222517,1722844238664,-9642.56191171,0.00019167,2]
[334222518,1722844238673,-1108.76834352,0.00019167,2]
[334222519,1722844238682,-277.18370616,0.00019167,2]
[334222520,1722844238692,-3087.63872233,0.00019167,2]
[334222521,1722844238701,-42341.71391136,0.00019167,2]
[334222522,1722844238711,-1715.68394884,0.00019167,2]
[334222523,1722844238721,-1610.68802731,0.00019177,2]
[334222524,1722844238730,-1794.59755427,0.00019177,2]
[334222525,1722844238739,-1763.49757797,0.00019177,2]
[334222526,1722844238748,-165.940855,0.00019178,2]
[334222527,1722844238758,-171.712395,0.00019178,2]
[334222528,1722844238767,-165.940847,0.00019178,2]
[334222529,1722844238776,-420.0,0.00019198,2]
[334222530,1722844238785,-1991.65402436,0.00019256,2]
[334222531,1722844238795,-2139.16821494,0.00019256,2]
[334222532,1722844238804,-154.83742071,0.00019256,2]
[334222533,1722844238814,-2139.16821494,0.00019256,2]
[334222534,1722844238823,-727.58928536,0.00019256,2]
[334222535,1722844238832,-318.09201942,0.00019256,2]
[334222536,1722844238842,-156.02963346,0.00019256,2]
[334222537,1722844238851,-352.447151,0.00019373,2]
[334222538,1722844238860,-321.087861,0.00019373,2]
[334222539,1722844238869,-318.026646,0.00019373,2]
[334222540,1722844238879,-321.087862,0.00019373,2]
[334222541,1722844238891,-275.738245,0.00019373,2]
[334222542,1722844238901,-256.87029,0.00019373,2]
[334222543,1722844238911,-31791.694961,0.00019437,2]
[334222544,1722844238920,-31791.694961,0.00019441,2]
[334222545,1722844238930,-1582.14441925,0.00019447,2]
[334222546,1722844238939,-21904.53468543,0.00019451,2]
[334222547,1722844238949,-1438.29474334,0.00019451,2]
[334222548,1722844238958,-1438.29474334,0.00019451,2]
[334222549,1722844238967,-154.83742071,0.00019451,2]
[334222550,1722844238976,-163.08091826,0.00019451,2]
[334222551,1722844238986,-240.82219567,0.00019451,2]
[334222552,1722844238995,-20759.5327798,0.00019451,2]
[334222553,1722844239004,-2278.204521,0.00019451,3]
[334222554,1722844239013,-342.05014288,0.00019451,2]
[334222555,1722844239023,-280.37012538,0.00019451,2]
[334222556,1722844239033,-240.82219567,0.00019451,2]
[334222557,1722844239043,-156.74439841,0.00019451,2]
[334222558,1722844239052,-7775.14481469,0.00019451,2]
[334222559,1722844239061,-753.03257937,0.00019451,2]
[334222560,1722844239071,-31791.694961,0.00019468,2]
[334222561,1722844239081,-7775.14481469,0.00019477,2]
[334222562,1722844239090,-2162.60520141,0.00019477,2]
[334222563,1722844239099,-178.30906711,0.00019477,2]
[334222564,1722844239110,-845.54644341,0.00019477,2]
[334222565,1722844239121,-1500.0,0.00019477,2]
[334222566,1722844239130,-845.54644341,0.00019477,2]
[334222567,1722844239142,-305.42819777,0.00019477,2]
[334222568,1722844239151,-519.59956575,0.00019477,2]
[334222569,1722844239162,-174.54270234,0.00019477,2]
[334222570,1722844239171,-37626.03860216,0.00019537,5]
[334222571,1722844239180,-24497.40447993,0.00019537,2]
[334222572,1722844239808,-3269.55799999,0.00019537,2]
[334222573,1722844239822,-4024.73248108,0.00019537,2]
[334222574,1722844239833,-181.8591033,0.00019547,2]
[334222575,1722844239843,-568.56884199,0.00019547,2]
[334222576,1722844239854,-300.11155827,0.00019547,2]
[334222577,1722844239864,-155.7192533,0.00019547,2]
[334222579,1722844239875,-154.83742071,0.00019547,2]
[334222580,1722844239886,-31791.694961,0.00019989,2]
[334222581,1722844239895,-165.54898858,0.00019999,2]
[334222582,1722844239905,-2124.51614001,0.00019999,2]
[334222583,1722844239915,-156.35315554,0.0002,2]
[334222584,1722844239925,-1632.70804043,0.0002,2]
[334222585,1722844239935,-1363.34392567,0.0002,2]
[334222587,1722844239944,-1392.59479936,0.0002,2]
[334222588,1722844239954,-294.09032939,0.0002,2]
[334222589,1722844239964,-154.74467129,0.0002,2]
[334222590,1722844239973,-254.97505895,0.0002,2]
[334222591,1722844239983,-154.76012181,0.0002028,2]
[334222592,1722844239993,-160.1642143,0.0002028,2]
[334222593,1722844240004,-309.50481162,0.0002028,2]
[334222594,1722844240013,-154.76012181,0.0002028,2]
[334222595,1722844240023,-319.75385853,0.0002028,2]
[334222596,1722844240033,-209.86849569,0.0002028,2]
[334222597,1722844240043,-336.1881449,0.0002028,2]
[334222598,1722844240054,-154.86419481,0.0002028,2]
[334222599,1722844240063,-309.45844772,0.0002028,2]
[334222601,1722844240072,-695.1835415,0.0002028,2]
[334222602,1722844240082,-188.24924053,0.0002028,2]
[334222603,1722844240091,-174.692072,0.00020707,2]
[334222604,1722844240100,-205.20449904,0.00020721,2]
[334222605,1722844240110,-209.20156569,0.00020721,2]
[334222606,1722844240125,-205.20449904,0.00020721,2]
[334222607,1722844240136,-154.76012181,0.00020721,2]
[334222608,1722844240145,-587.0,0.00020956,2]
[334222609,1722844240157,-573.15262334,0.00020999,2]
[334222610,1722844240167,-413.73440189,0.00020999,2]
[334222611,1722844240176,-150.112233,0.00021,2]
[334222612,1722844240186,-3000.0,0.00021,2]
[334222613,1722844240196,-3000.0,0.0002101,2]
[334222615,1722844240205,-3000.0,0.0002102,2]
[334222616,1722844240215,-978.82153938,0.0002103,2]
[334222620,1722844241839,-35012.4181319,0.00018125,2]
[334222621,1722844241849,-1091.69139402,0.00019177,2]
[334222622,1722844241858,-296.95255386,0.00019256,2]
[334222623,1722844241867,-600.90391779,0.00019256,2]
[334222624,1722844241877,-1438.29474334,0.00019256,2]
[334222625,1722844241893,-21904.53468543,0.00019256,2]
[334222626,1722844241902,-1382.92970052,0.00019451,2]
[334222627,1722844241912,-156.8188046,0.00019477,2]
[334222628,1722844241922,-951.80625463,0.00019477,2]
[334222629,1722844241932,-404.2656183,0.00019477,2]
[334222630,1722844241941,-2021.17846062,0.0002103,2]
[334222631,1722844241950,-3000.0,0.0002104,2]
[334222632,1722844241960,-680.54898449,0.00021048,2]
[334222633,1722844241970,-253.57473726,0.0002142,2]
[334222634,1722844241993,-158.13736821,0.00021589,2]
[334222635,1722844242005,-206.82545521,0.00021591,2]
[334222636,1722844242015,-2848.79958348,0.00021591,2]
[334222637,1722844242027,-664.23911189,0.00021599,2]
[334222638,1722844242038,-196.48473354,0.00021602,2]
[334222639,1722844242049,-738.64961944,0.00021602,2]
[334222640,1722844242059,-194.58009581,0.00021632,2]
[334222641,1722844242071,-512.88387693,0.00021641,10]
[334222642,1722844242082,-154.76012181,0.00021805,2]
[334222643,1722844242094,-31791.694961,0.00021906,3]
[334222644,1722844242106,-311.75377896,0.00021916,2]
[334222645,1722844242119,-358.31,0.00022,14]
[334222646,1722844242131,-8503.38,0.00022,14]
[334222647,1722844242157,-319.85,0.00022,7]
[334222648,1722844242168,-417.47709597,0.00022696,2]
[334222649,1722844242180,-823.0,0.00022875,2]
[334222650,1722844242194,-200.0,0.00023,2]
[334222651,1722844242207,-1582.14441925,0.00023437,2]
[334222652,1722844242218,-200.0,0.00024658,15]
[334222653,1722844242255,-197.0,0.0002497,2]
[334222654,1722844242277,-154.77557542,0.00025,2]
[334222655,1722844242299,-160.54991199,0.00026481,2]
[334222656,1722844242324,-772.25823972,0.00026569,2]
[334222657,1722844242346,-154.64,0.000266,31]
[334222658,1722844242370,-154.64,0.000266,31]
[334222659,1722844242395,-154.64,0.000266,31]
[334222660,1722844242412,-154.64,0.000266,31]
[334222661,1722844242431,-154.64,0.000266,31]
[334222662,1722844242453,-154.64,0.000266,31]
[334222663,1722844242469,-154.64,0.000266,31]
[334222664,1722844242483,-154.64,0.000266,31]
[334222665,1722844242503,-881.47696693,0.0002661,2]
[334222666,1722844242519,-417.47709597,0.00027044,2]
[334222667,1722844242537,-174.692072,0.00027167,2]
[334222668,1722844242551,-648.116339,0.00027397,120]
[334222669,1722844242579,-1582.14441925,0.00027427,2]
[334222670,1722844242599,-154.64,0.000288,31]
[334222671,1722844242618,-154.64,0.000288,31]
[334222672,1722844242635,-154.64,0.000288,31]
[334222673,1722844242658,-154.64,0.000288,31]
[334222674,1722844242674,-154.64,0.000288,31]
[334222675,1722844242690,-154.64,0.000288,31]
[334222676,1722844242707,-154.64,0.000288,31]
[334222677,1722844242724,-154.64,0.000288,31]
[334222678,1722844242740,-319.85,0.000288,7]
[334222679,1722844242756,-165.940847,0.00029715,2]
[334222680,1722844242773,-1000.0,0.00031,31]
[334222681,1722844242787,-154.64,0.00031,31]
[334222682,1722844242804,-154.64,0.00031,31]
[334222683,1722844242821,-154.64,0.00031,31]
[334222684,1722844242837,-154.64,0.00031,31]
[334222685,1722844242854,-154.64,0.00031,31]
[334222686,1722844242872,-154.64,0.00031,31]
[334222687,1722844242897,-154.64,0.00031,31]
[334222688,1722844242914,-154.64,0.00031,31]
[334222689,1722844242933,-8503.38,0.00031,14]
[334222691,1722844242951,-417.47709597,0.00031391,2]
[334222693,1722844242970,-1582.14441925,0.00031416,2]
[334222696,1722844242987,-648.116339,0.00031963,120]
[334222699,1722844243005,-358.31,0.000321,14]
[334222701,1722844243023,-1000.0,0.00033,33]
[334222704,1722844243041,-154.64,0.000332,31]
[334222707,1722844243059,-154.64,0.000332,31]
[334222710,1722844243076,-154.64,0.000332,31]
[334222713,1722844243094,-154.64,0.000332,31]
[334222716,1722844243110,-154.64,0.000332,31]
[334222718,1722844243134,-154.64,0.000332,31]
[334222723,1722844243160,-154.64,0.000332,31]
[334222727,1722844243178,-154.64,0.000332,31]
[334222739,1722844243326,-150.0,0.00033465,2]
[334222740,1722844243335,-507.0,0.00033465,2]
[334222741,1722844243345,-628.075,0.00033465,2]
[334222742,1722844243355,-174.692072,0.00033626,2]
[334222743,1722844243364,-1000.0,0.00035,35]
[334222744,1722844243374,-154.64,0.000354,31]
[334222745,1722844243385,-154.64,0.000354,31]
[334222746,1722844243402,-154.64,0.000354,31]
[334222747,1722844243412,-154.64,0.000354,31]
[334222748,1722844243423,-154.64,0.000354,31]
[334222749,1722844243433,-154.64,0.000354,31]
[334222750,1722844243444,-154.64,0.000354,31]
[334222751,1722844243454,-154.64,0.000354,31]
[334222752,1722844243466,-154.64,0.000354,31]
[334222753,1722844243476,-154.64,0.000354,31]
[334222754,1722844243487,-154.64,0.000354,31]
[334222755,1722844243496,-1582.14441925,0.00035406,2]
[334222756,1722844243506,-204.33492747,0.00035507,2]
[334222757,1722844243516,-319.85,0.000356,30]
[334222758,1722844243525,-78955.1,0.00035616,3]
[334222759,1722844243535,-19948.46518152,0.00035616,3]
[334222760,1722844243794,-1582.21,0.00035616,3]
[334222761,1722844243806,-4697.82732771,0.00035616,3]
[334222762,1722844243818,-28608.52167896,0.00035616,3]
[334222763,1722844243830,-10958.88581181,0.00035616,3]
[334222764,1722844243840,-54829.93,0.00035616,3]
[334222765,1722844243849,-417.47709597,0.00035738,2]
[334222766,1722844243859,-8503.38,0.00036,14]
[334222767,1722844243869,-150.0,0.00036465,2]
[334222768,1722844243879,-483.354,0.00036465,2]
[334222769,1722844243892,-191.540489,0.00036505,2]
[334222770,1722844243904,-648.116339,0.0003653,120]
[334222771,1722844243914,-1000.0,0.00037,37]
[334222772,1722844243924,-204.33492746,0.00037395,2]
[334222773,1722844243942,-358.31,0.000374,14]
[334222774,1722844243952,-1000.0,0.00039,39]
[334222775,1722844243962,-204.33492746,0.00039284,2]
[334222776,1722844243972,-4969.77633192,0.00039315,2]
[334222777,1722844243981,-4969.77633192,0.00039461,2]
[334222778,1722844243992,-516.93476408,0.00039599,32]
[334222779,1722844244051,-494.194417,0.00021642,2]
[334222780,1722844244061,-2054.96496209,0.00039599,32]
[334222781,1722844244071,-151.0,0.00039679,14]
[334222782,1722844244081,-151.0,0.00039679,14]
[334222783,1722844244090,-1135.90824,0.00039679,14]
[334222784,1722844244100,-1135.90824,0.00039679,14]
[334222785,1722844244110,-1295.612146,0.00039679,14]
[334222786,1722844244124,-1295.612146,0.00039679,14]
[334222787,1722844244140,-4969.77633192,0.00039899,2]
[334222788,1722844244151,-25060.0,0.000399,7]
[334222789,1722844244161,-319.85,0.000399,30]
[334222790,1722844244171,-2723.18794535,0.00039995,34]
[334222791,1722844244181,-1678.49183443,0.00039997,120]
[334222792,1722844244190,-640.32095285,0.00039999,11]
[334222793,1722844244201,-8932.98228283,0.0004,120]
[334222794,1722844244218,-789.45617639,0.0004,120]
[334222795,1722844244259,-107.658142,0.0004,120]
[334226594,1722844874212,150.5,0.00021876,120]
[334226595,1722844874612,196.0,0.00021876,120]
[334226596,1722844994558,150.5,0.00021876,120]
[334226599,1722845171535,6599.0,0.00027,120]
[334226600,1722845248118,-165.680254,0.00014247,2]
[334226601,1722845248140,-618.90887146,0.000158,2]
[334226656,1722845432520,-168.298046,0.00014247,2]
[334226658,1722845432532,-300.0,0.00015799,2]
[334226660,1722845432544,-300.0,0.00015799,2]
[334226662,1722845432555,-281.701954,0.000158,2]
[334226665,1722845432576,-1102.98917454,0.000158,2]
[334226667,1722845432587,-912.4763458,0.000158,2]
[334226669,1722845432597,-158.48348286,0.000158,2]
[334226671,1722845432608,-1663.72251705,0.000158,2]
[334226673,1722845432618,-1669.01055043,0.000158,2]
[334226675,1722845432629,-420.0,0.00017379,2]
[334226678,1722845432640,-3000.0,0.00017525,2]
[334226681,1722845432651,-24900.0,0.0001797,2]
[334226684,1722845432661,-1715.68394884,0.00018356,2]
[334226687,1722845432671,-189.242408,0.0001845,2]
[334226690,1722845432681,-179.809202,0.0001845,2]
[334226693,1722845432694,-1991.65402436,0.00018667,2]
[334226696,1722845432703,-189.242408,0.00018681,2]
[334226699,1722845432713,-179.809202,0.00018681,2]
[334226702,1722845432722,-426.9441554,0.00018825,2]
[334226704,1722845432736,-189.242408,0.00018911,2]
[334226706,1722845432747,-179.809202,0.00018911,2]
[334226708,1722845432756,-42341.71391136,0.00018999,2]
[334226710,1722845432768,-250.0,0.00019041,2]
[334226712,1722845432778,-9642.56191171,0.00019101,2]
[334226714,1722845432788,-7775.14481469,0.00019102,2]
[334226716,1722845432798,-587.0,0.00019117,2]
[334226718,1722845432808,-1643.15842058,0.00019139,7]
[334226720,1722845432818,-318.09201942,0.00019139,2]
[334226722,1722845432828,-189.242408,0.00019142,2]
[334226724,1722845432838,-179.809202,0.00019142,2]
[334226726,1722845432848,-154.83742071,0.00019147,2]
[334226728,1722845432859,-154.83742071,0.00019147,2]
[334226729,1722845432869,-1108.76834352,0.00019151,2]
[334226730,1722845432879,-3160.45770161,0.00019151,2]
[334226731,1722845432889,-277.18370616,0.00019155,2]
[334226732,1722845432898,-1500.0,0.00019155,2]
[334226733,1722845432908,-1091.57771247,0.00019167,2]
[334226734,1722845432917,-21904.53468543,0.00019167,2]
[334226735,1722845432927,-300.0,0.00019176,2]
[334226736,1722845432937,-162.87800655,0.00019176,2]
[334226737,1722845432946,-500.0,0.00019176,2]
[334226738,1722845432955,-500.0,0.00019176,2]
[334226739,1722845432965,-500.0,0.00019176,2]
[334226740,1722845432975,-20759.5327798,0.00019177,2]
[334226741,1722845432988,-2278.204521,0.00019177,3]
[334226742,1722845432997,-3087.63872233,0.00019177,2]
[334226743,1722845433007,-20759.5327798,0.00019177,2]
[334226744,1722845433016,-246.74677642,0.00019256,2]
[334226779,1722845438579,-300.0,0.00017969,2]
[334226780,1722845438589,-1715.68394884,0.00018356,2]
[334226781,1722845438598,-925.55747197,0.00018657,2]
[334226782,1722845440000,-1237.04772944,0.00018657,2]
[334226783,1722845440010,-1991.65402436,0.00018657,2]
[334226784,1722845440019,-1162.86940617,0.00019147,2]
[334226785,1722845440029,-3087.63872233,0.00019167,2]
[334226786,1722845440039,-500.0,0.00019176,2]
[334226787,1722845440048,-500.0,0.00019176,2]
[334226788,1722845440057,-500.0,0.00019176,2]
[334226790,1722845440067,-500.0,0.00019176,2]
[334226791,1722845440084,-500.0,0.00019176,2]
[334226792,1722845440097,-2124.51614001,0.00019177,2]
[334226793,1722845440107,-1516.75080155,0.00019256,2]
[334226794,1722845440117,-163.08091826,0.00019256,2]
[334226796,1722845440128,-808.0041696,0.00019256,2]
[334226797,1722845440138,-2139.16821494,0.00019256,2]
[334226798,1722845440148,-1794.59755427,0.00019256,2]
[334226799,1722845440158,-183.255487,0.00019259,2]
[334226800,1722845440168,-189.242408,0.00019373,2]
[334226801,1722845440178,-179.809202,0.00019373,2]
[334226802,1722845440187,-25068.6414447,0.00019441,2]
[334226803,1722845440197,-2139.16821494,0.00019451,2]
[334226804,1722845440207,-1438.29474334,0.00019451,2]
[334226805,1722845440216,-349.95344771,0.00019451,2]
[334226806,1722845440227,-156.74439841,0.00019451,2]
[334226807,1722845440239,-154.89925365,0.00019451,2]
[334226808,1722845440248,-240.82219567,0.00019451,2]
[334226809,1722845440258,-209.17917971,0.00019477,2]
[334226810,1722845440267,-245.16608057,0.00019477,2]
[334226811,1722845440277,-1382.92970052,0.00019477,2]
[334226813,1722845440287,-7001.77703298,0.00019477,2]
[334226814,1722845440297,-174.54270234,0.00019477,2]
[334226815,1722845440307,-7001.77703298,0.00019477,2]
[334226816,1722845440316,-165.4001754,0.00019547,2]
[334226817,1722845440326,-1610.68802731,0.00019547,2]
[334226818,1722845440336,-156.35315554,0.0002,2]
[334226828,1722845440469,-1632.70804043,0.0002,2]
[334226830,1722845440479,-1392.59479936,0.0002,2]
[334226832,1722845440490,-294.09032939,0.0002,2]
[334226833,1722845440499,-1363.34392567,0.0002,2]
[334226834,1722845440509,-154.74467129,0.0002,2]
[334226835,1722845440518,-154.71377951,0.0002,2]
[334226836,1722845440528,-168.298046,0.00020707,2]
[334226837,1722845440542,-25068.6414447,0.00020979,3]
[334226838,1722845440552,-150.0,0.00021,2]
[334226839,1722845440562,-426.0,0.00021028,2]
[334226840,1722845440572,-25068.6414447,0.00021522,3]
[334226841,1722845440584,-154.72922386,0.00021599,2]
[334226842,1722845440594,-209.20156569,0.00021602,2]
[334226843,1722845440605,-154.74467129,0.00021602,2]
[334226845,1722845440614,-154.72922386,0.00021602,2]
[334226847,1722845440627,-154.72922386,0.00021602,2]
[334226849,1722845440638,-154.72922386,0.00021602,2]
[334226851,1722845440648,-845.54644341,0.00021609,2]
[334226852,1722845440657,-519.59956575,0.00021609,2]
[334226853,1722845440667,-154.74467129,0.00021609,2]
[334226854,1722845440676,-753.03257937,0.00021632,2]
[334226855,1722845440686,-280.37012538,0.00021632,2]
[334226856,1722845440695,-342.05014288,0.00021642,2]
[334226857,1722845440705,-19694.95484504,0.00021766,3]
[334226858,1722845440714,-154.71377951,0.00021805,2]
[334226859,1722845440723,-156.02963346,0.00021805,2]
[334226860,1722845440732,-25068.6414447,0.00021856,3]
[334226861,1722845440743,-154.72922386,0.00021876,2]
[334226862,1722845440752,-727.58928536,0.00021906,2]
[334226863,1722845440761,-25068.6414447,0.0002199,3]
[334226864,1722845440772,-200.0,0.00024658,15]
[334226865,1722845440781,-154.76012181,0.00025,2]
[334226866,1722845440790,-500.0,0.00025,30]
[334226867,1722845440800,-500.0,0.00025,30]
[334226868,1722845440809,-500.0,0.00025,30]
[334226869,1722845440819,-500.0,0.00025,30]
[334226870,1722845440829,-452.0,0.00025,30]
[334226871,1722845440838,-155.59865243,0.00025,2]
[334226872,1722845440847,-9381.40710715,0.00025,30]
[334226873,1722845440857,-265.0,0.00026,31]
[334226874,1722845440866,-160.54991199,0.00026253,2]
[334226875,1722845440875,-907.54807736,0.00026462,10]
[334226876,1722845440884,-881.47696693,0.00026466,2]
[334226877,1722845440893,-402.3465429,0.00026575,2]
[334226878,1722845440903,-907.54807736,0.00026727,10]
[334226879,1722845440915,-25068.6414447,0.0002699,3]
[334226880,1722845440925,-37626.03860216,0.0002699,5]
[334226881,1722845440934,-41102.92880268,0.0002699,3]
[334226882,1722845440982,-34102.99553142,0.0002699,3]
[334226883,1722845440994,-608.59824079,0.00026991,10]
[334226884,1722845441003,-154.71377951,0.00027,2]
[334226885,1722845441013,-9678.40661042,0.00027,2]
[334226886,1722845441022,-363.76476106,0.00027,2]
[334226887,1722845441031,-4181.02325297,0.00027,2]
[334226888,1722845441040,-56644.10080984,0.00027,14]
[334226889,1722845441053,-535.36439192,0.00027,14]
[334226890,1722845441065,-68913.39764607,0.00027,14]
[334226891,1722845441075,-13234.84134782,0.00027,2]
[334226892,1722845441084,-154.74467129,0.00027,15]
[334226893,1722845441094,-1625.81763535,0.00027,2]
[334226894,1722845441103,-7242.51,0.00027,14]
[334226895,1722845441113,-319.85,0.00027,7]
[334226896,1722845441122,-168.298046,0.00027167,2]
[334226897,1722845441132,-620.73624575,0.00027397,2]
[334226898,1722845441142,-324.05817,0.00027397,120]
[334226899,1722845441151,-151.0,0.0003,120]
[334226900,1722845441161,-274.0,0.0003,2]
[334226901,1722845441172,-151.0,0.00030138,7]
[334226902,1722845441181,-265.012456,0.00030138,7]
[334226903,1722845441191,-1158.207235,0.00030138,7]
[334226904,1722845441201,-1158.207235,0.00030138,7]
[334226905,1722845441210,-1022.317416,0.00030138,7]
[334226906,1722845441221,-1022.317416,0.00030138,7]
[334226907,1722845441231,-151.0,0.00030138,7]
[334226908,1722845441247,-3421.54093531,0.00030138,2]
[334226909,1722845441257,-200.0,0.00030349,120]
[334226910,1722845441272,-274.0,0.00030411,2]
[334226911,1722845441282,-200.0,0.00030822,120]
[334226912,1722845441291,-151.0,0.00031397,120]
[334226913,1722845441301,-4256.82172642,0.00031561,33]
[334226914,1722845441310,-274.0,0.00031644,2]
[334226915,1722845441320,-324.05817,0.00031963,120]
[334226916,1722845441329,-999.47999369,0.0003267,2]
[334226917,1722845441339,-151.0,0.00032795,120]
[334226918,1722845441348,-1411.0,0.00033178,2]
[334226919,1722845441358,-276.0,0.00033226,2]
[334226920,1722845441367,-150.0,0.00033465,2]
[334226921,1722845441377,-483.354,0.00033465,2]
[334226922,1722845441386,-168.298046,0.00033626,2]
[334226923,1722845441395,-7242.51,0.000337,14]
[334226924,1722845441405,-319.85,0.000337,30]
[334226925,1722845441414,-151.0,0.00034192,120]
[334226926,1722845441423,-1000.0,0.00035,35]
[334226927,1722845441433,-25068.6414447,0.0003529,4]
[334226928,1722845441443,-274.0,0.00035441,2]
[334226929,1722845441452,-151.0,0.00035589,120]
[334226930,1722845441462,-151.0,0.00035616,7]
[334226931,1722845441472,-1158.207235,0.00035616,7]
[334226932,1722845441482,-1158.207235,0.00035616,7]
[334226933,1722845441499,-1022.317416,0.00035616,7]
[334226934,1722845441509,-1022.317416,0.00035616,7]
[334226935,1722845441519,-151.0,0.00035616,7]
[334226936,1722845441529,-32923.67,0.00035616,3]
[334226937,1722845441539,-19491.95761397,0.00035616,3]
[334226938,1722845441552,-31912.86238603,0.00035616,3]
[334226939,1722845441564,-42837.35,0.00035616,3]
[334226940,1722845441574,-35697.79,0.00035616,3]
[334226941,1722845441584,-553.417404,0.000357,7]
[334226942,1722845441594,-1411.0,0.00036178,2]
[334226943,1722845441603,-324.05817,0.0003653,120]
[334226944,1722845441613,-160.0,0.00036545,3]
[334226945,1722845441623,-151.0,0.00036986,120]
[334226946,1722845441635,-1000.0,0.00037,37]
[334226947,1722845441646,-274.0,0.00037656,2]
[334226948,1722845441732,-7242.51,0.000377,14]
[334226949,1722845441748,-319.85,0.000377,30]
[334226950,1722845441758,-274.0,0.00037973,2]
[334226951,1722845441768,-151.0,0.00038259,15]
[334226952,1722845441778,-151.0,0.00038259,15]
[334226953,1722845441787,-151.0,0.00038384,120]
[334226954,1722845441796,-224.7684202,0.00038804,2]
[334226955,1722845441806,-200.0,0.00038978,2]
[334226956,1722845441816,-151.0,0.0003899,14]
[334226957,1722845441826,-300.195192,0.0003899,14]
[334226958,1722845441835,-300.195192,0.0003899,14]
[334226959,1722845441845,-151.0,0.0003899,14]
[334226960,1722845441855,-1000.0,0.00039,39]
[334226961,1722845441864,-1411.0,0.00039178,2]
[334226962,1722845441873,-10260.51381052,0.000392,30]
[334226963,1722845441883,-277.289582,0.00039225,14]
[334226964,1722845441892,-151.0,0.00039225,14]
[334226965,1722845441902,-151.0,0.00039225,14]
[334226966,1722845441912,-1166.050931,0.00039225,14]
[334226967,1722845441921,-1166.050931,0.00039225,14]
[334226968,1722845441931,-492.243664,0.00039225,14]
[334226969,1722845441940,-492.243664,0.00039225,14]
[334226970,1722845441950,-151.0,0.00039225,14]
[334226971,1722845441959,-151.0,0.00039225,14]
[334226972,1722845441969,-151.0,0.00039225,14]
[334226973,1722845441979,-4969.77633192,0.0003924,2]
[334226974,1722845441993,-160.0,0.00039488,4]
[334226975,1722845442002,-150.0,0.00039687,2]
[334226976,1722845442012,-4969.77633192,0.00039705,2]
[334226977,1722845442021,-151.0,0.00039781,120]
[334226978,1722845442031,-2000.0,0.0003985,120]
[334226979,1722845442042,-2000.0,0.0003985,120]
[334226980,1722845442052,-2000.0,0.0003985,120]
[334226981,1722845442063,-2000.0,0.0003985,120]
[334226982,1722845442073,-2000.0,0.0003985,120]
[334226983,1722845442083,-2000.0,0.0003985,120]
[334226984,1722845442094,-2000.0,0.0003985,120]
[334226985,1722845442104,-2000.0,0.0003985,120]
[334226986,1722845442114,-2000.0,0.0003985,120]